Workbook

Sheet Лист1
B3: д/с Умырзая
B5: Кружок "Детская йога"
B6: Хузиева Л.И.
B7: S- кв.м. | D7: 73.3
B8: Кол-во занятий в мес. - | D8: 4
B9: Кол-во детей - | D9: 15
B10: Ст-ть использ-го оборудования - руб. | D10: 38420
B12: 1. ОТ на 1 обучающего - руб.: | D12: =D13+D15 -> 17.04
B13: Окл.-14132 руб., | D13: =14132/18/4/D9 -> 13.09
B15: Начисление на ОТ - | D15: =D13*30.2% -> 3.95
B18: 2. Затраты на мат.запасы на 1 реб. -руб.
B19: ст обор/36мес.=руб. | D19: =D10/36 -> 1067.22
B20: Затраты на 1 занятие- ст обор в мес/кол-во часов в мес/кол-во детей - руб. | D20: =D19/D8/D9 -> 17.79
B22: 3. Объем накладных затрат 1 ребенка - руб. | D22: =D30 -> 11.09
B23: Расчет накладных затрат
B24: 1 | C24: прогноз затрат на АУП | D24: -
B25: 2 | C25: Прогноз затрат общехозяйственного назнач. | D25: =D34+D35+2.3 -> 11.09
B26: 3 | C26: Прогноз суммы начисленной амортизации имущ-ва общехоз-го назнач. | D26: -
B27: 4 | C27: Прогноз ФОТ основного персонала | D27: =D12 -> 17.04
B28: 5 | C28: Коэффициент накладных затрат 5=(1+2+3)/4 | D28: =D25/D27 -> 0.65
B29: 6 | C29: Затраты на основн персонал, | D29: =D12 -> 17.04
B30: 7 | C30: Итого накладные затраты (в час на 1 реб) | D30: =D25 -> 11.09
B33: 1. | C33: ОТ уборщика: руб.
C34: 12130 руб./40 час/4 нед*1 час=75,82/кол-во дет, руб. | D34: =75.82*1.302/D9 -> 6.58
B35: 2. | C35: Затраты на ком. Услуги: коммун/кол-во дет, руб. | D35: =(B36+B40+B45)/D9 -> 2.21
A36: Э/Э - | B36: =0.03*D7*7 -> 15.39 | C36: руб.
A37: Годов. Потребл - 38136 квт/ч (факт 2019 г)
A38: 38136 квт/ч/244 раб.дн.в году=156,3 квт/ч в день/12 час.=13,03 квт/ч (затраты в час работы на все здание)
A39: 13,03 квт/ч /615,5 кв.м*12,9 кв.м.=1,56 квт/ч*5,69 руб.=
A40: Вода- | B40: =F41+F42+F43+F44 -> 10.85 | C40: руб.
A41: 1 реб*75 л(в день норма)/12 часов/1000=0,00625 куб.м*61,85 руб.=0,39 руб.*кол-во дет=5,85 руб. | F41: =0.39*D9 -> 5.85
A42: 2 работника (воспит, уборщ)*20 л/12 час/1000=0,003 куб.м.*34,5 руб.= 0,1руб. | F42: 0.1
A43: На мытье полов 75 л/1000=0,075 куб.м.*34,5руб.= 2,59руб. | F43: 2.59
A44: Водоотвед. 0,00625 куб.м.+0,003 куб.м.+0,075 куб.м.=0,08425 куб.м.*27,36 руб= 2,31руб. | F44: 2.31
A45: Отопление - | B45: =0.01*D7/30/24*6810 -> 6.93 | C45: руб.
A46: 22,481 Гкал(по факту 2019 г)/8 мес(период отопления)= 2,81 Гкал в мес.
A47: 2,81 Гкал/615,5*12,9 кв.м=1,270Гкал/30 дн/24 ч*1 ч=0,0018 Гкал в час*1990 руб.= руб.
B49: 3. | C49: Материальные затраты - 2,3 руб.
A50: - Канцелярские товары (для ведения документации) – 1,3 руб. на одного ребенка
A51: Стоимость – 6144 руб.
A52: Срок полезного использования – 8 мес.
A53: Расходы в месяц – 768/8=96
A54: Затраты на одного ребенка за одно занятие – 96/4(часов в месяц)=24/15(к-во детей)=1,2
A55: - Моющие средства для уборки помещения – 1,1 руб. на одного ребенка
A56: Стоимость – 5632
A57: Срок полезного использования – 8 мес.
A58: Расходы в месяц –704/8=88
A59: Затраты на одного ребенка за одно занятие – 88/4(часов в месяц)=22/15(к-во детей)=1,1
C61: Расчет стоимости одного занятия на 1 человека:
C62: Расчет цены на оказание платной услуги
C64: Наименование статей затрат | D64: Сумма (руб.)
B65: 1 | C65: Затраты на оплату труда основного персонала | D65: =D12*D9 -> 255.55
B66: 2 | C66: Затраты материальных запасов | D66: =D20*D9 -> 266.81
B67: 3 | C67: Сумма начисленной амортизации оборудования, используемого при оказании платной услуги | D67: -
B68: 4 | C68: Накладные затраты, относимые на платную услугу | D68: =D25*D9 -> 166.39
B69: 5 | C69: Итого затрат | D69: =SUM(D65:D68) -> 688.75
B70: 6 | C70: Цена на 1 платную услугу | D70: =D69/D9 -> 45.92
B71: 7 | C71: Цена в месяц на 1 ребенка | D71: 183.68

Sheet Лист2

Sheet Лист3
